bitfinex-derivatives/quotes_BTCF0:USTF0_20241023
["timestamp","ask_amount","ask_price","bid_price","bid_amount"]
[1729703630502,0.076152,65708.0,65707.0,0.076151]
[1729703631108,0.076147,65712.0,65711.0,0.076146]
[1729703631711,0.076151,65710.0,65709.0,0.076149]
[1729703633627,0.28244384,65715.0,65706.0,0.00228241]
[1729703633934,0.076152,65707.0,65706.0,0.07843341]
[1729703634133,0.076132,65724.0,65706.0,0.26228241]
[1729703634323,0.076146,65715.0,65714.0,0.076142]
[1729703634523,0.26,65723.0,65710.0,0.26]
[1729703634837,0.076148,65711.0,65708.0,0.07615]
[1729703635031,0.26,65714.0,65706.0,0.00228241]
[1729703635229,0.076149,65711.0,65708.0,0.076151]
[1729703635529,0.076152,65708.0,65706.0,0.00228241]
[1729703635736,0.076152,65708.0,65707.0,0.076152]
[1729703636328,0.26,65714.0,65709.0,0.07615]
[1729703636531,0.076145,65713.0,65708.0,0.076151]
[1729703636835,0.076149,65710.0,65708.0,0.076151]
[1729703637134,0.076149,65710.0,65709.0,0.07615]
[1729703637319,0.1071,65713.0,65711.0,0.076147]
[1729703637320,0.076147,65712.0,65711.0,0.076147]
[1729703637522,0.076149,65710.0,65706.0,0.00228241]
[1729703637726,0.1071,65713.0,65706.0,0.00228241]
[1729703637927,0.076147,65712.0,65711.0,0.076146]
[1729703638737,0.1071,65713.0,65712.0,0.076146]
[1729703639237,0.076102,65751.0,65710.0,0.26]
[1729703639430,0.076102,65751.0,65706.0,0.00228241]
[1729703639431,0.076134,65723.0,65713.0,0.26]
[1729703639628,0.076134,65723.0,65722.0,0.076134]
[1729703639931,0.26,65723.0,65706.0,0.0240344]
[1729703640136,0.26,65713.0,65712.0,0.076146]
[1729703640337,0.076142,65716.0,65715.0,0.076143]
[1729703640737,0.076146,65712.0,65711.0,0.076147]
[1729703640933,0.1047,65717.0,65706.0,0.00228241]
[1729703640934,0.18084,65717.0,65716.0,0.076142]
[1729703641639,0.076144,65714.0,65713.0,0.076142]
[1729703644138,0.18,65714.0,65706.0,0.00228241]
[1729703644340,0.18,65714.0,65712.0,0.076145]
[1729703644341,0.179346,65713.0,65712.0,0.076145]
[1729703646333,0.1032,65713.0,65706.0,0.00228241]
[1729703646535,0.256152,65707.0,65691.0,0.18]
[1729703646741,0.18,65698.0,65697.0,0.076163]
[1729703648046,0.18,65701.0,65700.0,0.07616]
[1729703648343,0.256159,65701.0,65700.0,0.07616]
[1729703650935,0.076162,65698.0,65697.0,0.256163]
[1729703651137,0.256159,65701.0,65699.0,0.076161]
[1729703651437,0.076161,65700.0,65699.0,0.076161]
[1729703652542,0.1023,65701.0,65700.0,0.07616]
[1729703652747,0.02181567,65702.0,65701.0,0.076159]
[1729703653047,0.076158,65702.0,65701.0,0.076159]
[1729703654536,0.256155,65705.0,65703.0,0.076156]
[1729703654737,0.076156,65704.0,65703.0,0.076156]
[1729703656246,0.18,65705.0,65704.0,0.076156]
[1729703656438,0.20190168,65705.0,65704.0,0.076156]
[1729703657448,0.27805568,65705.0,65704.0,0.076156]
[1729703658236,0.076154,65705.0,65704.0,0.076156]
[1729703658436,0.1032,65713.0,65701.0,0.256159]
[1729703658651,0.18,65717.0,65707.0,0.18]
[1729703658852,0.13772,65719.0,65704.0,0.18]
[1729703658853,0.076148,65711.0,65704.0,0.18]
[1729703659158,0.076148,65711.0,65701.0,0.076159]
[1729703659159,0.18,65717.0,65707.0,0.18]
[1729703659449,0.18,65717.0,65716.0,0.076141]
[1729703659652,0.36963719,65717.0,65716.0,0.076141]
[1729703659950,0.076144,65715.0,65709.0,0.07615]
[1729703660153,0.4305269,65714.0,65713.0,0.076145]
[1729703660349,0.11349719,65714.0,65713.0,0.076145]
[1729703660651,0.11349719,65714.0,65713.0,0.256145]
[1729703661043,0.11349719,65714.0,65713.0,0.076145]
[1729703661551,0.19528607,65714.0,65713.0,0.076145]
[1729703661754,0.16585794,65714.0,65713.0,0.532665]
[1729703661955,0.1357139,65718.0,65713.0,0.45652]
[1729703662250,0.1105,65736.0,65713.0,0.45652]
[1729703662251,0.1357139,65721.0,65720.0,0.076137]
[1729703662553,0.13559256,65723.0,65722.0,0.076135]
[1729703662741,0.1507814,65729.0,65728.0,0.076128]
[1729703662945,0.1507814,65731.0,65728.0,0.18]
[1729703663145,0.13075295,65732.0,65731.0,0.076124]
[1729703663350,0.256124,65732.0,65731.0,0.076124]
[1729703663663,0.30108114,65732.0,65731.0,0.076124]
[1729703663946,0.00228256,65733.0,65732.0,0.076123]
[1729703664151,0.13776951,65733.0,65732.0,0.076123]
[1729703664359,0.00228256,65733.0,65732.0,0.076123]
[1729703665346,0.256116,65738.0,65730.0,0.18]
[1729703665347,0.076117,65737.0,65730.0,0.18]
[1729703665545,0.076117,65737.0,65736.0,0.076118]
[1729703665755,0.18,65738.0,65723.0,0.2907]
[1729703665954,0.18,65726.0,65722.0,0.10908218]
[1729703666151,0.18,65723.0,65722.0,0.00228218]
[1729703666348,0.256134,65723.0,65722.0,0.07841718]
[1729703666552,0.256134,65723.0,65722.0,0.00228218]
[1729703666859,0.256134,65723.0,65722.0,0.07841718]
[1729703667556,0.256134,65723.0,65722.0,0.00228218]
[1729703669155,0.256134,65723.0,65722.0,0.07841718]
[1729703671458,0.256134,65723.0,65722.0,0.00228218]
[1729703671654,0.256134,65723.0,65722.0,0.07841718]
[1729703671959,0.20942483,65723.0,65722.0,0.07841718]
[1729703672261,0.28555883,65723.0,65722.0,0.00228218]
[1729703672459,0.076138,65719.0,65718.0,0.06008738]
[1729703672760,0.0667278,65719.0,65718.0,0.076139]
[1729703673158,0.1428658,65719.0,65718.0,0.076139]
[1729703673358,0.18962254,65719.0,65718.0,0.076139]
[1729703673559,0.36962254,65719.0,65718.0,0.076139]
[1729703673858,0.42425742,65719.0,65718.0,0.076139]
[1729703675259,0.24425742,65719.0,65718.0,0.076139]
[1729703675465,0.18962254,65719.0,65718.0,0.076139]
[1729703675962,0.11348454,65719.0,65718.0,0.076139]
[1729703677457,0.05463488,65721.0,65716.0,0.18]
[1729703677663,0.05463488,65721.0,65720.0,0.256137]
[1729703678061,0.13077088,65721.0,65720.0,0.076137]
[1729703679565,0.1896202,65721.0,65720.0,0.076137]
[1729703680268,0.16019546,65721.0,65720.0,0.076137]
[1729703680569,0.076141,65717.0,65712.0,0.18]
[1729703680869,0.076141,65717.0,65711.0,0.1061]
[1729703680870,0.076141,65717.0,65716.0,0.256142]
[1729703682769,0.076139,65720.0,65719.0,0.076138]
[1729703683664,0.076139,65720.0,65719.0,0.256138]
[1729703685072,0.25198308,65731.0,65719.0,0.18]
[1729703685073,0.29458308,65731.0,65719.0,0.18]
[1729703685275,0.076131,65726.0,65725.0,0.076129]
[1729703685660,0.31254868,65731.0,65720.0,0.18]
[1729703685865,0.076136,65723.0,65722.0,0.076134]
[1729703687372,0.31254868,65731.0,65720.0,0.18]
[1729703687673,0.20867268,65731.0,65730.0,0.076125]
[1729703690569,0.38867268,65731.0,65730.0,0.076125]
[1729703690771,0.07614,65718.0,65716.0,0.076141]
[1729703690976,0.076129,65728.0,65716.0,0.076142]
[1729703690977,0.256141,65717.0,65716.0,0.076142]
[1729703691576,0.076141,65717.0,65716.0,0.076142]
[1729703692271,0.256137,65720.0,65719.0,0.076138]
[1729703695070,0.36962486,65720.0,65719.0,0.05903884]
[1729703695274,0.44236365,65720.0,65719.0,0.05903884]
[1729703696287,0.076144,65716.0,65715.0,0.076143]
[1729703696475,0.14287375,65716.0,65715.0,0.076143]
[1729703696684,0.18963186,65716.0,65715.0,0.076143]
[1729703699478,0.24426835,65716.0,65715.0,0.076143]
[1729703700678,0.13078049,65716.0,65715.0,0.076143]
[1729703700881,0.18963291,65716.0,65715.0,0.076143]
[1729703701087,0.2442694,65716.0,65715.0,0.076143]
[1729703702597,0.2442694,65716.0,65704.0,0.00228291]
[1729703702598,0.1681254,65716.0,65704.0,0.00228291]
[1729703702888,0.1681254,65716.0,65705.0,0.19225573]
[1729703702889,0.42238029,65706.0,65705.0,0.19225573]
[1729703703369,0.42238029,65706.0,65705.0,0.15225043]
[1729703703575,0.24238029,65706.0,65705.0,0.26835752]
[1729703703804,0.16622629,65706.0,65705.0,0.44835752]
[1729703703988,0.1138,65719.0,65705.0,1.00885778]
[1729703704176,0.076142,65716.0,65715.0,0.25614]
[1729703704687,0.076142,65716.0,65715.0,0.07614]
[1729703709985,0.076142,65716.0,65715.0,0.25614]
[1729703710286,0.16020764,65716.0,65715.0,0.25614]
[1729703711789,0.16020764,65716.0,65715.0,0.07614]
[1729703711985,0.21484638,65716.0,65715.0,0.07614]
[1729703713987,0.21484406,65716.0,65715.0,0.07614]
[1729703717893,0.076146,65712.0,65711.0,0.256147]
[1729703718082,0.256146,65712.0,65711.0,0.076147]
[1729703718400,0.256146,65712.0,65711.0,0.12180865]
[1729703718401,0.076146,65712.0,65711.0,0.12180865]
[1729703718588,0.076146,65712.0,65711.0,0.076147]
[1729703718900,0.076146,65712.0,65711.0,0.256147]
[1729703722381,0.076149,65710.0,65709.0,0.06087003]
[1729703722585,0.18,65710.0,65707.0,0.13702103]
[1729703722794,0.076151,65708.0,65707.0,0.076151]
[1729703723192,0.076151,65708.0,65707.0,0.256151]
[1729703725284,0.16022031,65708.0,65707.0,0.256151]
[1729703726095,0.31133852,65708.0,65707.0,0.256151]
[1729703726290,0.16022031,65708.0,65707.0,0.256151]
[1729703728082,0.11345823,65708.0,65707.0,0.256151]
[1729703728284,0.29622706,65708.0,65707.0,0.256151]
[1729703728788,0.16021881,65708.0,65707.0,0.256151]
[1729703729793,0.16021881,65708.0,65704.0,0.02074102]
[1729703729794,0.076154,65705.0,65704.0,0.00301148]
[1729703730095,0.34022181,65705.0,65704.0,0.00301148]
[1729703730298,0.28022181,65705.0,65704.0,0.00301148]
[1729703730597,0.28022181,65705.0,65704.0,0.07916748]
[1729703731183,0.28022181,65705.0,65704.0,0.00301148]
[1729703731397,0.076169,65694.0,65693.0,0.076165]
[1729703731591,0.11347623,65694.0,65693.0,0.076165]
[1729703731895,0.11347623,65694.0,65683.0,0.109]
[1729703731896,0.076179,65685.0,65684.0,0.076177]
[1729703732083,0.15102603,65688.0,65684.0,0.45362312]
[1729703732287,0.33102603,65688.0,65686.0,0.076176]
[1729703732582,0.15102603,65688.0,65687.0,0.33367192]
[1729703734197,0.15102603,65688.0,65687.0,0.19231269]
[1729703736192,0.15102603,65688.0,65687.0,0.79038208]
[1729703736193,0.08335597,65688.0,65687.0,0.79038208]
[1729703736392,1.08335597,65688.0,65687.0,0.79038208]
[1729703736798,1.0,65688.0,65687.0,0.79038208]
[1729703736992,0.8267,65688.0,65687.0,0.79019206]
[1729703737394,0.902874,65688.0,65687.0,0.79019206]
[1729703737593,0.8267,65688.0,65687.0,0.51347206]
[1729703742099,0.8267,65688.0,65687.0,1.24237723]
[1729703742302,0.8267,65688.0,65687.0,1.13585928]
[1729703742993,0.8267,65688.0,65687.0,1.15968449]
[1729703743692,0.8267,65688.0,65687.0,0.70296449]
[1729703743897,0.8267,65688.0,65687.0,0.53729727]
[1729703745300,0.902874,65688.0,65687.0,0.53729727]
[1729703745602,0.902874,65688.0,65687.0,0.60570722]
[1729703745903,0.8267,65688.0,65682.0,0.076181]
[1729703746110,0.07618,65683.0,65682.0,0.076181]
[1729703746502,0.07618,65683.0,65682.0,0.21754702]
[1729703749413,0.181877,65686.0,65685.0,0.076178]
[1729703749609,0.181877,65686.0,65685.0,0.256178]
[1729703750306,0.1057,65686.0,65685.0,0.256178]
[1729703751101,0.181876,65686.0,65685.0,0.256178]
[1729703751499,0.1057,65686.0,65685.0,0.256178]
[1729703752608,0.82878001,65688.0,65687.0,0.076175]
[1729703752907,0.78857397,65688.0,65687.0,0.076175]
[1729703754606,0.96857397,65688.0,65680.0,0.10859322]
[1729703754812,0.256181,65683.0,65682.0,0.07618]
[1729703755199,0.076181,65683.0,65682.0,0.07618]
[1729703756301,0.256176,65686.0,65685.0,0.076178]
[1729703756904,0.076176,65686.0,65685.0,0.076178]
[1729703757310,0.86678797,65688.0,65685.0,0.18]
[1729703757510,0.78857397,65688.0,65687.0,0.076175]
[1729703757915,0.78857397,65688.0,65687.0,0.21753477]
[1729703758609,0.74282092,65688.0,65687.0,0.21753477]
[1729703759519,0.81899492,65688.0,65687.0,0.21753477]
[1729703760812,0.68944577,65688.0,65687.0,0.79038385]
[1729703761115,0.61320174,65688.0,65687.0,0.68684866]
[1729703761312,0.61320174,65688.0,65687.0,0.63556988]
[1729703761525,0.61320174,65688.0,65687.0,0.49880945]
[1729703762217,0.5598255,65688.0,65687.0,0.49880945]
[1729703762814,0.5598255,65688.0,65687.0,0.076175]
[1729703763910,0.6359995,65688.0,65687.0,0.076175]
[1729703764110,0.5598255,65688.0,65687.0,0.076175]
[1729703766116,0.6359995,65688.0,65687.0,0.076175]
[1729703768019,0.076179,65684.0,65683.0,0.07618]
[1729703770812,0.56593618,65688.0,65687.0,0.076175]
[1729703771007,0.82015018,65688.0,65687.0,0.1923147]
[1729703771212,0.82015018,65688.0,65687.0,0.1161397]
[1729703771615,0.82015018,65688.0,65687.0,0.25750098]
[1729703772413,0.56397618,65688.0,65687.0,0.51367598]
[1729703772721,0.56397618,65688.0,65687.0,0.6201914]
[1729703772908,0.56397618,65688.0,65687.0,0.62020865]
[1729703773109,0.56397618,65688.0,65687.0,0.67737258]
[1729703774122,0.56397618,65688.0,65687.0,0.49737258]
[1729703775219,0.56397618,65688.0,65687.0,0.49683207]
[1729703775620,0.56397618,65688.0,65687.0,0.61856398]
[1729703775823,0.51060166,65688.0,65687.0,0.61856398]
[1729703776817,0.51060166,65688.0,65687.0,0.61862856]
[1729703777020,0.51060166,65688.0,65687.0,0.49683207]
[1729703777416,0.51060166,65688.0,65687.0,0.52065983]
[1729703777619,0.51060166,65688.0,65687.0,0.35704804]
[1729703778321,0.51060166,65688.0,65687.0,0.33322028]
[1729703780318,0.51060166,65688.0,65687.0,0.45322028]
[1729703780518,0.46485252,65688.0,65687.0,1.19311379]
[1729703780726,0.46485252,65688.0,65687.0,1.07311379]
[1729703781023,0.46485252,65688.0,65687.0,0.90994028]
[1729703781225,0.46485252,65688.0,65687.0,0.45322028]
[1729703784218,0.46485252,65688.0,65687.0,0.196175]
[1729703784419,0.46485252,65688.0,65687.0,0.45241148]
[1729703785930,0.46485252,65688.0,65687.0,0.196175]
[1729703786229,0.46485252,65688.0,65687.0,0.22000323]
[1729703787126,0.46485252,65688.0,65687.0,0.25812698]
[1729703790518,0.46485252,65688.0,65687.0,0.22000279]
[1729703792928,0.35810538,65688.0,65687.0,0.82449924]
[1729703793116,0.35810538,65688.0,65687.0,0.6391286]
[1729703793317,0.35810538,65688.0,65687.0,0.47633833]
[1729703793518,0.281861,65688.0,65687.0,0.98255352]
[1729703793732,0.281861,65688.0,65687.0,0.86255352]
[1729703793931,0.281861,65688.0,65687.0,0.80060387]
[1729703794433,0.281861,65688.0,65687.0,0.93764489]
[1729703794927,0.281861,65688.0,65687.0,0.97576555]
[1729703795127,0.281861,65688.0,65687.0,0.99959096]
[1729703796734,0.281861,65688.0,65687.0,0.67721528]
[1729703797028,0.02964,65688.0,65687.0,1.25393528]
[1729703797228,0.02964,65688.0,65687.0,1.37568649]
[1729703797420,0.02964,65688.0,65687.0,1.25393528]
[1729703797837,0.00120662,65690.0,65689.0,0.076173]
[1729703798035,0.00120662,65690.0,65689.0,0.55721328]
[1729703798230,0.00120662,65690.0,65689.0,0.73614762]
[1729703798424,0.00120662,65690.0,65689.0,0.99311375]
[1729703798733,0.00120662,65690.0,65689.0,0.81802658]
[1729703799828,0.00120662,65690.0,65689.0,0.93802658]
[1729703800027,0.00120662,65690.0,65689.0,0.21999803]
[1729703800426,0.00120662,65690.0,65689.0,0.79667803]
[1729703800630,0.00120662,65690.0,65689.0,0.33999803]
[1729703801030,0.00120662,65690.0,65689.0,0.316173]
[1729703803637,0.03951205,65706.0,65689.0,0.36]
[1729703803825,0.03951205,65706.0,65699.0,0.316161]
[1729703804330,0.03951205,65706.0,65699.0,0.196161]
[1729703804534,0.03951205,65706.0,65699.0,0.316161]
[1729703805629,0.03951205,65706.0,65699.0,0.196161]
[1729703805829,0.03951205,65706.0,65699.0,0.316161]
[1729703806024,0.03951205,65706.0,65699.0,0.196161]
[1729703806525,0.03951205,65706.0,65699.0,0.316161]
[1729703806722,0.03951205,65706.0,65699.0,0.33394729]
[1729703807634,0.03951205,65706.0,65699.0,0.21394729]
[1729703807933,0.02739746,65702.0,65701.0,0.076159]
[1729703808134,0.196155,65705.0,65701.0,0.51830891]
[1729703808336,0.2334,65703.0,65702.0,0.11509834]
[1729703808636,0.2334,65703.0,65694.0,0.13588]
[1729703808637,0.076162,65699.0,65698.0,0.18262237]
[1729703808941,0.076162,65699.0,65698.0,0.196161]
[1729703809630,0.294962,65699.0,65698.0,0.196161]
[1729703816934,0.2188,65699.0,65698.0,0.196161]
[1729703818936,0.03466917,65704.0,65703.0,0.076157]
[1729703820432,0.03466917,65704.0,65703.0,0.09425939]
[1729703820657,0.03466917,65704.0,65703.0,0.21425939]
[1729703820936,0.03466917,65704.0,65703.0,0.09425939]
[1729703822240,0.03466917,65704.0,65703.0,0.21425939]
[1729703822933,0.03466917,65704.0,65703.0,0.34912686]
[1729703823330,0.03466917,65704.0,65703.0,0.37294897]
[1729703823642,0.03466917,65704.0,65703.0,0.60609725]
[1729703824546,0.05449842,65709.0,65708.0,0.076151]
[1729703824738,0.00114119,65709.0,65708.0,0.44416675]
[1729703825043,0.08291677,65721.0,65717.0,0.07614]
[1729703825044,0.05159093,65718.0,65717.0,0.07614]
[1729703825243,0.05159093,65718.0,65717.0,0.95774032]
[1729703825548,0.08291677,65721.0,65717.0,0.95774032]
[1729703825549,0.08291677,65721.0,65719.0,0.076138]
[1729703825733,0.08291677,65721.0,65719.0,0.32128007]
[1729703826045,0.06847081,65720.0,65719.0,0.46509673]
[1729703826240,0.06847081,65720.0,65719.0,0.52509673]
[1729703826541,5.8e-07,65721.0,65720.0,0.076137]
[1729703826736,5.8e-07,65721.0,65720.0,0.80822564]
[1729703826936,5.8e-07,65721.0,65720.0,0.63392679]
[1729703827244,0.09055061,65725.0,65720.0,1.04145657]
[1729703827245,0.02431,65725.0,65720.0,1.04145657]
[1729703827545,0.00228207,65740.0,65720.0,1.04145657]
[1729703827546,0.00228207,65740.0,65739.0,0.076115]
[1729703827840,0.00228207,65740.0,65739.0,0.18795184]
[1729703828644,0.01793409,65744.0,65739.0,0.11183684]
[1729703828842,0.076113,65741.0,65740.0,0.076112]
[1729703829046,0.18,65744.0,65743.0,0.076109]
[1729703829047,0.076109,65744.0,65743.0,0.076109]
[1729703829340,0.076109,65744.0,65743.0,0.256109]
[1729703829546,0.30878811,65747.0,65746.0,0.076107]
[1729703829848,0.2145,65747.0,65746.0,0.31665848]
[1729703830043,0.2145,65747.0,65746.0,0.256107]
[1729703830745,0.290606,65747.0,65746.0,0.256107]
[1729703830937,0.076108,65745.0,65744.0,0.256107]
[1729703831138,0.2145,65747.0,65746.0,0.076107]
[1729703831448,0.2145,65747.0,65742.0,0.076111]
[1729703831745,0.2145,65747.0,65739.0,0.15324615]
[1729703832046,0.290606,65747.0,65745.0,0.18]
[1729703832345,0.2145,65747.0,65739.0,0.09392015]
[1729703832549,0.18,65740.0,65739.0,0.09392015]
[1729703834040,0.18,65742.0,65741.0,0.076113]
[1729703836347,0.18,65742.0,65734.0,0.1354]
[1729703836648,0.18,65740.0,65739.0,0.076115]
[1729703836944,0.18,65744.0,65737.0,0.18]
[1729703837152,0.18,65744.0,65743.0,0.07611]
[1729703837549,0.3945,65747.0,65745.0,0.076108]
[1729703837945,0.11343955,65746.0,65745.0,0.076108]
[1729703838147,0.11343955,65746.0,65736.0,0.076118]
[1729703838340,0.11343955,65746.0,65733.0,0.18]
[1729703838341,0.18,65737.0,65729.0,0.18]
[1729703838547,0.18,65730.0,65727.0,0.0204465]
[1729703838748,0.18,65730.0,65713.0,0.00255696]
[1729703838749,0.42266235,65729.0,65713.0,0.076145]
[1729703839055,0.076144,65714.0,65711.0,0.076147]
[1729703839240,0.13501856,65714.0,65713.0,0.076145]
[1729703839656,0.03730564,65714.0,65713.0,0.076145]
[1729703839845,0.06673261,65715.0,65713.0,0.076145]
[1729703840046,0.24673261,65714.0,65713.0,0.076145]
[1729703840551,0.076145,65713.0,65711.0,0.076147]
[1729703840749,0.06673261,65712.0,65707.0,0.0181328]
[1729703840949,0.06673261,65711.0,65710.0,0.076148]
[1729703841350,0.1134927,65711.0,65704.0,0.18]
[1729703841549,0.13503305,65707.0,65706.0,0.076153]
[1729703841867,0.1134927,65707.0,65706.0,0.256153]
[1729703842061,0.02942697,65707.0,65706.0,0.712713]
[1729703842255,0.02942494,65707.0,65706.0,0.712713]
[1729703842853,0.13511833,65719.0,65718.0,0.076139]
[1729703843043,0.15002062,65723.0,65716.0,0.18]
[1729703843250,0.03729899,65722.0,65721.0,0.076136]
[1729703843447,0.17241834,65724.0,65722.0,0.076134]
[1729703843646,0.03730002,65723.0,65722.0,0.076134]
[1729703843957,0.33696,65737.0,65722.0,0.076134]
[1729703844165,0.19539721,65825.0,65738.0,0.4476]
[1729703844369,0.15043165,65830.0,65821.0,0.18]
[1729703844560,0.95594953,65831.0,65830.0,0.07601]
[1729703844759,0.94490953,65831.0,65830.0,0.07601]
[1729703844954,0.94490953,65831.0,65820.0,0.076021]
[1729703845158,0.1129,65837.0,65825.0,0.18]
[1729703845364,0.1129,65837.0,65833.0,0.090393]
[1729703845661,0.2929,65837.0,65834.0,0.11588721]
[1729703845852,0.85360083,65835.0,65831.0,0.090393]
[1729703846047,0.85360083,65832.0,65829.0,0.090393]
[1729703846247,0.1129,65837.0,65827.0,0.350393]
[1729703846248,0.85360083,65830.0,65827.0,0.350393]
[1729703846557,0.1129,65837.0,65827.0,0.350393]
[1729703846760,0.85360083,65828.0,65827.0,0.350393]
[1729703847055,0.85360083,65828.0,65824.0,0.090393]
[1729703847253,0.1129,65837.0,65824.0,0.090393]
[1729703847454,0.1129,65837.0,65817.0,0.26]
[1729703847455,0.1129,65837.0,65830.0,0.07491211]
[1729703847665,0.85360083,65831.0,65820.0,0.090393]
[1729703847853,0.85360083,65821.0,65819.0,0.090393]
[1729703848049,0.4664,65833.0,65819.0,0.090393]
[1729703848262,0.4664,65833.0,65809.0,0.00227948]
[1729703848263,0.85360083,65820.0,65814.0,0.090393]
[1729703848563,0.26,65825.0,65813.0,0.090393]
[1729703848748,0.26,65820.0,65813.0,0.090393]
[1729703848949,0.85360083,65814.0,65812.0,0.090393]
[1729703849162,0.26,65820.0,65810.0,0.090393]
[1729703849458,0.26,65820.0,65811.0,0.090393]
[1729703849860,0.85360083,65812.0,65811.0,0.090393]
[1729703850647,0.85360083,65812.0,65797.0,0.00227914]
[1729703850648,0.85360083,65812.0,65807.0,0.090393]
[1729703850953,0.26,65814.0,65805.0,0.076038]
[1729703851155,0.85360083,65806.0,65805.0,0.076038]
[1729703851347,0.85360083,65806.0,65803.0,0.090393]
[1729703851549,0.26,65809.0,65800.0,0.090393]
[1729703851746,0.85360083,65799.0,65797.0,0.00227914]
[1729703851955,0.85360083,65798.0,65792.0,0.076053]
[1729703852166,0.26,65793.0,65786.0,0.07606]
[1729703852463,0.26,65791.0,65786.0,0.07606]
[1729703852650,0.85360083,65787.0,65786.0,0.07606]
[1729703853363,0.85360083,65787.0,65786.0,0.076061]
[1729703853953,1.11360083,65787.0,65786.0,0.076061]
[1729703854656,0.80030379,65787.0,65786.0,0.076061]
[1729703857058,0.20632,65795.0,65786.0,0.26]
[1729703857360,0.46632,65795.0,65794.0,0.076051]
[1729703857563,1.26662379,65795.0,65794.0,0.076051]
[1729703859260,1.06030379,65795.0,65794.0,0.076051]
[1729703859461,0.80030379,65795.0,65794.0,0.076051]
[1729703860163,0.80030379,65796.0,65795.0,0.07605]
[1729703860464,0.67851479,65796.0,65795.0,0.21715614]
[1729703860667,0.67851479,65796.0,65795.0,0.21715683]
[1729703860962,0.67851479,65796.0,65795.0,0.33308757]
[1729703861157,0.51104591,65796.0,65795.0,0.19198074]
[1729703862154,0.51104591,65796.0,65795.0,0.45198074]
[1729703863359,0.51104591,65796.0,65795.0,0.59308595]
[1729703863657,0.00228032,65810.0,65806.0,0.076037]
[1729703863866,0.51104591,65807.0,65806.0,0.076037]
[1729703864172,0.51104591,65807.0,65806.0,0.19196445]
[1729703865266,0.46537644,65807.0,65806.0,0.19196136]
[1729703868163,0.46537644,65807.0,65806.0,0.13590866]
[1729703868366,0.46537644,65807.0,65806.0,0.076037]
[1729703869670,0.46537644,65807.0,65806.0,0.19195646]
[1729703870566,0.26,65826.0,65806.0,0.19195646]
[1729703870772,0.19764,65830.0,65822.0,0.06008268]
[1729703870971,0.19764,65829.0,65827.0,0.04505903]
[1729703871172,0.19764,65829.0,65828.0,0.04505903]
[1729703871368,0.19764,65829.0,65818.0,0.26]
[1729703871369,0.46537644,65824.0,65818.0,0.26]
[1729703871671,0.26,65831.0,65819.0,0.11590371]
[1729703871874,0.1976,65831.0,65826.0,0.076014]
[1729703872273,0.46537644,65827.0,65826.0,0.076014]
[1729703872476,0.46537644,65827.0,65826.0,0.19191588]
[1729703872668,0.46537644,65827.0,65826.0,0.11590188]
[1729703872878,0.31067421,65812.0,65805.0,0.09043142]
[1729703873179,0.1002,65834.0,65807.0,0.076036]
[1729703873180,0.31067421,65808.0,65807.0,0.076036]
[1729703873378,0.31067421,65808.0,65807.0,0.21712977]
[1729703873768,0.31067421,65808.0,65807.0,0.38306193]
[1729703874565,0.23456498,65808.0,65807.0,0.38306193]
[1729703875073,0.26,65827.0,65807.0,0.30702593]
[1729703875273,0.26,65831.0,65817.0,0.26]
[1729703875481,0.23456498,65818.0,65817.0,0.336025]
[1729703876478,0.2978,65834.0,65817.0,0.336025]
[1729703876479,0.2978,65834.0,65817.0,0.26]
[1729703876674,0.23456498,65819.0,65818.0,0.076024]
[1729703876875,0.23456498,65819.0,65818.0,0.336024]
[1729703877374,0.00227921,65835.0,65818.0,0.26]
[1729703877580,0.00227921,65835.0,65811.0,0.26]
[1729703877581,0.23456498,65826.0,65825.0,0.076016]
[1729703878276,0.00227921,65835.0,65834.0,0.076005]
[1729703878475,0.23684419,65835.0,65834.0,0.076005]
[1729703879376,0.23456498,65835.0,65834.0,0.076005]
[1729703879880,0.01620099,65849.0,65844.0,0.075993]
[1729703880271,0.23456498,65845.0,65844.0,0.075993]
[1729703881176,0.00227888,65849.0,65848.0,0.075989]
[1729703881568,0.23684386,65849.0,65848.0,0.075989]
[1729703882076,0.23456498,65849.0,65848.0,0.075989]
[1729703882280,0.4668,65867.0,65844.0,0.26]
[1729703882500,0.23456498,65852.0,65844.0,0.26]
[1729703882678,0.26,65862.0,65844.0,0.26]
[1729703882679,0.26,65862.0,65851.0,0.075986]
[1729703882976,0.23456498,65846.0,65841.0,0.075997]
[1729703883177,0.23456498,65846.0,65840.0,0.26]
[1729703883385,0.23456498,65846.0,65845.0,0.335992]
[1729703883584,0.075978,65858.0,65855.0,0.075981]
[1729703883897,0.075974,65861.0,65851.0,0.26]
[1729703884083,0.23456498,65858.0,65857.0,0.075978]
[1729703885287,0.00076,65871.0,65870.0,0.075964]
[1729703885584,0.26,65881.0,65870.0,0.075964]
[1729703885881,0.23456498,65871.0,65870.0,0.075964]
[1729703886081,0.23456498,65871.0,65870.0,0.335964]
[1729703886382,0.23456498,65871.0,65865.0,0.26]
[1729703886578,0.23456498,65864.0,65861.0,0.26]
[1729703886780,0.23456498,65867.0,65861.0,0.26]
[1729703891784,0.31843732,65867.0,65866.0,0.075968]
[1729703891975,0.37295043,65867.0,65866.0,0.075968]
[1729703893884,0.13838545,65867.0,65866.0,0.075968]
[1729703894085,0.08387234,65867.0,65866.0,0.075968]
[1729703896088,0.08385582,65867.0,65866.0,0.075968]
[1729703896881,0.19501829,65888.0,65887.0,0.075943]
[1729703897275,0.42958327,65888.0,65887.0,0.075943]
[1729703897475,0.28906643,65888.0,65880.0,0.075952]
[1729703897680,0.28906643,65888.0,65876.0,0.075957]
[1729703897681,0.05450145,65887.0,65886.0,0.06137651]
[1729703898081,0.05450145,65887.0,65886.0,0.32137651]
[1729703898282,0.16498053,65887.0,65886.0,0.335945]
[1729703898485,0.00227708,65896.0,65886.0,0.26]
[1729703898793,0.182228,65901.0,65885.0,0.01450513]
[1729703898794,0.075946,65886.0,65885.0,0.01450513]
[1729703898992,0.23456498,65884.0,65878.0,0.26]
[1729703899189,0.4646759,65946.0,65877.0,0.075955]